bitfinex-derivatives/quotes_ETHF0:USTF0_20250116
["timestamp","ask_amount","ask_price","bid_price","bid_amount"]
[1737056644400,3.80764,3334.7,3334.6,1.2]
[1737056646605,0.59991,3334.4,3334.3,0.5999]
[1737056646906,2.28150148,3334.4,3334.3,0.5999]
[1737056647293,2.79520148,3334.4,3334.3,0.5999]
[1737056650407,2.28150148,3334.4,3334.3,0.5999]
[1737056652712,2.88139148,3334.4,3334.3,0.5999]
[1737056653009,2.28150148,3334.4,3334.3,0.5999]
[1737056658115,1.10747,3334.6,3334.5,0.59988]
[1737056659315,0.5076,3334.6,3334.5,0.59988]
[1737056659612,3.2078,3334.7,3334.6,0.59986]
[1737056660307,3.2078,3334.7,3334.6,41.39986]
[1737056660706,3.80764,3334.7,3334.6,41.39986]
[1737056661314,3.2078,3334.7,3334.6,0.59986]
[1737056661613,3.80764,3334.7,3334.6,0.59986]
[1737056664414,0.59991,3334.5,3334.4,0.59987]
[1737056664713,0.59991,3334.3,3334.2,5.28975035]
[1737056664912,1.0527,3334.4,3334.3,0.59991]
[1737056665108,0.5999,3334.4,3334.3,0.59991]
[1737056667621,1.0604,3334.4,3334.3,0.59991]
[1737056667821,0.4605,3334.4,3334.3,0.59991]
[1737056669123,1.06039,3334.4,3334.3,0.59991]
[1737056670623,0.4605,3334.4,3334.3,0.59991]
[1737056670824,1.06039,3334.4,3334.3,0.59991]
[1737056671918,0.59993,3334.2,3334.1,4.68983035]
[1737056672117,2.88143148,3334.2,3334.1,4.68983035]
[1737056672319,2.88143148,3334.2,3334.1,5.28978035]
[1737056673122,2.88143148,3334.2,3334.1,0.59995]
[1737056673322,0.59997,3334.1,3334.0,0.59995]
[1737056674034,2.95816771,3334.1,3334.0,0.59995]
[1737056674324,2.95816771,3334.1,3333.9,5.17133035]
[1737056674521,0.59997,3334.0,3333.9,5.77130035]
[1737056676431,0.59997,3334.0,3333.9,4.68983035]
[1737056676632,2.35819771,3334.0,3333.9,0.59998]
[1737056677023,2.35819771,3334.0,3333.9,1.54178]
[1737056677926,2.95812771,3334.2,3333.9,13.19479219]
[1737056678129,2.95812771,3334.2,3334.1,0.59995]
[1737056679321,2.95812771,3334.2,3334.1,5.30253838]
[1737056681232,2.35819771,3334.2,3334.1,5.30253838]
[1737056682123,2.35819771,3334.2,3334.1,46.10253838]
[1737056683228,2.28150148,3334.2,3334.1,5.21529307]
[1737056683425,2.88143148,3334.2,3334.1,5.21529307]
[1737056683828,3.35313148,3334.2,3334.1,5.21529307]
[1737056684520,0.59995,3334.1,3334.0,6.4979858]
[1737056685434,0.59995,3334.1,3334.0,1.79595]
[1737056685435,2.95921885,3334.1,3334.0,1.79595]
[1737056689334,2.95921885,3334.1,3334.0,1.196]
[1737056689735,2.95921885,3334.1,3334.0,1.79597]
[1737056692037,2.35926885,3334.1,3334.0,1.79597]
[1737056693235,5.11247033,3334.2,3334.0,1.196]
[1737056693441,5.11247033,3334.2,3334.1,0.59995]
[1737056694439,2.35926885,3334.2,3334.1,0.59995]
[1737056695846,2.35926885,3334.3,3334.2,0.59993]
[1737056696945,2.95915885,3334.4,3334.3,0.59991]
[1737056697128,2.35926885,3334.4,3334.2,4.7020358]
[1737056697441,2.88141148,3334.3,3334.2,5.3019558]
[1737056698135,5.24068033,3334.3,3334.2,0.59992]
[1737056698641,0.59993,3334.2,3334.1,5.3019758]
[1737056699643,0.59993,3334.2,3334.1,0.59994]
[1737056700741,5.81308848,3334.3,3334.2,0.59993]
[1737056701039,3.531587,3334.3,3334.2,0.59993]
[1737056701542,3.531587,3334.3,3334.2,41.39993]
[1737056702047,3.2078,3334.4,3334.2,53.06080596]
[1737056702343,3.2078,3334.4,3334.3,0.59991]
[1737056702938,3.80769,3334.4,3334.3,0.59991]
[1737056703536,6.16637584,3334.4,3334.3,5.29344921]
[1737056704141,5.56648584,3334.4,3334.3,5.29344921]
[1737056704535,6.16637584,3334.4,3334.3,5.29344921]
[1737056704843,2.35868584,3334.4,3334.3,0.59991]
[1737056705444,2.95857584,3334.4,3334.3,0.59991]
[1737056705837,2.35868584,3334.4,3334.3,0.59991]
[1737056706137,2.35868584,3334.5,3334.4,0.59989]
[1737056706338,2.35868584,3334.5,3334.4,1.05399]
[1737056706536,2.35868584,3334.5,3334.4,1.51569]
[1737056707145,2.35868584,3334.5,3334.4,6.20922921]
[1737056707745,2.95856584,3334.5,3334.4,6.20922921]
[1737056707944,2.95856584,3334.5,3334.4,5.29342921]
[1737056709042,2.95856584,3334.5,3334.4,4.69353921]
[1737056709939,2.28150148,3334.6,3334.1,9.97960071]
[1737056709940,6.99039778,3334.6,3334.1,3.93913921]
[1737056710133,0.59993,3334.2,3334.1,3.93913921]
[1737056710740,1.09413,3334.2,3334.1,3.93913921]
[1737056711546,1.09413,3334.2,3334.0,0.59996]
[1737056711547,0.59995,3334.1,3334.0,0.59996]
[1737056713041,3.53959936,3334.1,3334.0,0.59996]
[1737056714139,2.35956558,3334.1,3333.9,0.5012]
[1737056714342,2.35956558,3334.1,3334.0,0.59997]
[1737056715254,2.35956558,3334.1,3334.0,5.78924989]
[1737056716146,2.95951558,3334.1,3334.0,5.78924989]
[1737056716551,2.95951558,3334.1,3334.0,0.59997]
[1737056716754,0.59997,3334.0,3333.9,7.0530537]
[1737056717048,3.84187148,3334.0,3333.9,7.0530537]
[1737056717652,3.84187148,3334.0,3333.7,9.37966071]
[1737056717653,3.84187148,3334.0,3333.7,7.0530537]
[1737056717955,0.6,3333.8,3333.7,7.0530537]
[1737056718547,4.2632,3333.9,3333.7,7.0530537]
[1737056718845,3.2078,3333.9,3333.8,0.6]
[1737056719157,3.53959936,3334.1,3334.0,0.59997]
[1737056719451,5.88612038,3334.1,3333.8,3.69290148]
[1737056719656,5.88612038,3334.1,3334.0,41.39997]
[1737056720559,2.35888288,3334.3,3334.2,0.59993]
[1737056722147,5.31762576,3334.6,3334.5,0.59988]
[1737056722148,2.95874288,3334.6,3334.5,0.59988]
[1737056724158,2.35888288,3334.6,3334.5,0.59988]
[1737056725851,2.95874288,3334.6,3334.5,0.59988]
[1737056728460,2.35888288,3334.6,3334.5,0.59988]
[1737056729162,2.35888288,3334.6,3334.5,1.57548]
[1737056729860,2.95874288,3334.6,3334.5,1.57548]
[1737056730052,2.35888288,3334.6,3334.5,1.57548]
[1737056730870,0.59985,3334.7,3334.6,0.59986]
[1737056731368,6.64301288,3334.8,3334.7,0.59984]
[1737056731567,6.04318288,3334.8,3334.5,0.9756]
[1737056731763,0.59986,3334.7,3334.6,0.59984]
[1737056732768,0.59988,3334.6,3334.5,0.59986]
[1737056733064,1.08378,3334.6,3334.5,0.59986]
[1737056734063,3.44266288,3334.6,3334.5,0.59988]
[1737056734264,2.95874288,3334.6,3334.5,0.59988]
[1737056735266,0.59986,3334.6,3334.5,0.59988]
[1737056738569,2.95873288,3334.7,3334.6,0.59986]
[1737056738858,2.35888288,3334.7,3334.6,0.59986]
[1737056739457,2.35888288,3334.7,3334.6,41.39986]
[1737056739660,2.85708288,3334.7,3334.6,41.39986]
[1737056739862,0.4982,3334.7,3334.6,41.39986]
[1737056742463,0.4982,3334.7,3334.6,0.59986]
[1737056742661,0.59989,3334.5,3334.4,0.59986]
[1737056743762,0.59994,3334.3,3334.2,0.59991]
[1737056746369,1.56844,3334.3,3334.2,0.59991]
[1737056746969,3.92732288,3334.3,3334.2,0.59991]
[1737056751470,1.56844,3334.3,3334.2,0.59991]
[1737056751773,0.9685,3334.3,3334.2,0.59991]
[1737056752070,0.59991,3334.3,3334.2,0.59991]
[1737056752372,3.8077,3334.4,3334.3,0.59991]
[1737056752670,3.2078,3334.4,3334.3,0.59991]
[1737056754071,3.2078,3334.4,3334.2,0.4688]
[1737056754367,3.2078,3334.4,3334.1,8.2480537]
[1737056754567,3.80769,3334.4,3334.3,0.59991]
[1737056754869,0.59993,3334.3,3334.2,0.59991]
[1737056755369,3.2078,3334.4,3334.1,1.6638]
[1737056755567,3.80771,3334.4,3334.3,0.59991]
[1737056758872,0.59993,3334.3,3334.2,0.59991]
[1737056760772,5.56668288,3334.4,3334.3,0.59991]
[1737056761174,2.35888288,3334.4,3334.3,0.59991]
[1737056762479,3.2078,3334.8,3334.3,5.1691091]
[1737056762668,3.80763,3334.8,3334.7,0.59984]
[1737056762977,3.80762,3334.8,3334.7,0.59984]
[1737056763466,0.59986,3334.7,3334.6,0.59985]
[1737056763874,5.56668288,3334.8,3334.5,2.74130148]
[1737056764068,5.56668288,3334.8,3334.7,0.59984]
[1737056765572,6.16650288,3334.8,3334.7,0.59984]
[1737056766269,5.56668288,3334.8,3334.7,0.59984]
[1737056766479,3.2078,3334.8,3334.7,0.59984]
[1737056766675,3.80762,3334.8,3334.7,0.59984]
[1737056767076,3.2078,3334.8,3334.7,0.59984]
[1737056767772,7.34594432,3334.8,3334.7,0.59984]
[1737056767972,6.74612432,3334.8,3334.7,0.59984]
[1737056768374,7.34594432,3334.8,3334.7,0.59984]
[1737056768781,6.74612432,3334.8,3334.7,0.59984]
[1737056769380,7.34594432,3334.8,3334.7,0.59984]
[1737056769879,3.80762,3334.8,3334.7,0.59984]
[1737056770079,3.2078,3334.8,3334.7,0.59984]
[1737056770379,3.80762,3334.8,3334.7,0.59984]
[1737056771284,3.2078,3334.8,3334.7,0.59984]
[1737056772388,5.56656797,3334.8,3334.7,0.59984]
[1737056773987,6.16638797,3334.8,3334.7,0.59984]
[1737056774191,5.56656797,3334.8,3334.7,0.59984]
[1737056774785,3.2078,3334.8,3334.7,0.59984]
[1737056776683,3.2078,3334.8,3334.7,41.39984]
[1737056776891,3.80762,3334.8,3334.7,0.59984]
[1737056777087,3.6845,3334.8,3334.7,5.77944559]
[1737056777388,4.28432,3334.8,3334.7,5.77944559]
[1737056777976,3.6845,3334.8,3334.7,5.77944559]
[1737056778381,3.80762,3334.8,3334.7,5.77944559]
[1737056778588,6.1659592,3334.8,3334.7,0.59984]
[1737056779493,5.5661392,3334.8,3334.5,7.4745864]
[1737056779693,0.59986,3334.6,3334.5,8.6695864]
[1737056779889,0.59986,3334.6,3334.5,9.2694664]
[1737056780897,0.59986,3334.6,3334.5,2.25468]
[1737056781391,1.06236,3334.6,3334.5,2.25468]
[1737056782587,0.4625,3334.6,3334.3,47.8147864]
[1737056782792,1.58299,3334.5,3334.4,0.59989]
[1737056784694,0.4625,3334.6,3334.5,0.59988]
[1737056784896,2.8208392,3334.6,3334.5,0.59988]
[1737056785587,2.8208392,3334.6,3334.5,1.06358]
[1737056785789,0.4625,3334.6,3334.5,1.06358]
[1737056785990,0.4625,3334.6,3334.5,1.52718]
[1737056786999,2.3583392,3334.7,3334.6,0.59986]
[1737056788096,5.5661392,3334.8,3334.7,0.59984]
[1737056790494,6.1659592,3334.8,3334.7,0.59984]
[1737056790695,5.5661392,3334.8,3334.7,0.59984]
[1737056790898,6.1659592,3334.8,3334.7,0.59984]
[1737056792798,3.80762,3334.8,3334.7,0.59984]
[1737056793693,7.34594432,3334.8,3334.7,0.59984]
[1737056794695,9.70469613,3334.8,3334.7,0.59984]
[1737056794899,6.16637181,3334.8,3334.7,0.59984]
[1737056795494,5.56655181,3334.8,3334.7,0.59984]
[1737056796297,3.2078,3334.8,3334.7,0.59984]
[1737056797798,3.2078,3334.8,3334.7,1.09644]
[1737056797998,3.2078,3334.8,3334.7,0.59984]
[1737056797999,3.80762,3334.8,3334.7,0.59984]
[1737056798197,4.75972,3334.8,3334.7,0.59984]
[1737056798397,4.75972,3334.8,3334.7,5.77151246]
[1737056799795,4.75972,3334.8,3334.7,0.59984]
[1737056802204,7.69971396,3334.8,3334.7,0.59984]
[1737056802502,7.34743396,3334.8,3334.7,0.59984]
[1737056803298,6.74761396,3334.8,3334.7,0.59984]
[1737056803498,6.74761396,3334.8,3334.7,1.08214]
[1737056804098,6.74761396,3334.8,3334.7,13.27689188]
[1737056809810,6.74761396,3334.8,3334.7,6.26210548]
[1737056812007,7.34743396,3334.8,3334.7,6.26210548]
[1737056812208,3.80762,3334.8,3334.7,13.27689188]
[1737056812410,3.2078,3334.8,3334.7,13.27689188]
[1737056813908,6.74761396,3334.8,3334.7,6.26210548]
[1737056815513,7.34743396,3334.8,3334.7,6.26210548]
[1737056815712,6.74761396,3334.8,3334.7,6.26210548]
[1737056816613,7.34743396,3334.8,3334.7,6.26210548]
[1737056816814,6.74761396,3334.8,3334.7,6.26210548]
[1737056817114,7.34743396,3334.8,3334.7,6.26210548]
[1737056817512,6.74761396,3334.8,3334.7,6.26210548]
[1737056823720,6.74761396,3334.8,3334.7,13.27689188]
[1737056824621,7.34743396,3334.8,3334.7,12.19475188]
[1737056826423,0.59984,3334.7,3334.6,0.59985]
[1737056826621,1.09444,3334.7,3334.6,0.59985]
[1737056827720,4.6360674,3334.7,3334.6,5.78841719]
[1737056828324,3.5416274,3334.7,3334.6,5.78841719]
[1737056828518,3.5416274,3334.7,3334.6,6.74301719]
[1737056830323,2.36122224,3334.7,3334.6,6.74301719]
[1737056834627,2.36122224,3334.7,3334.6,16.1226779]
[1737056836233,5.56902224,3334.8,3334.7,0.59984]
[1737056837026,5.56902224,3334.8,3334.7,5.78840719]
[1737056837422,6.16884224,3334.8,3334.7,5.78840719]
[1737056838334,5.56902224,3334.8,3334.7,5.78840719]
[1737056838534,3.2078,3334.8,3334.7,6.72950719]
[1737056838940,3.2078,3334.8,3334.7,7.92350719]
[1737056839631,3.2078,3334.8,3334.7,17.3031679]
[1737056839836,3.2078,3334.8,3334.7,16.3620679]
[1737056840325,3.80762,3334.8,3334.7,16.3620679]
[1737056840837,3.2078,3334.8,3334.7,6.98240719]
[1737056842035,3.2078,3334.8,3334.7,14.01681014]
[1737056843940,3.80762,3334.8,3334.7,14.01681014]
[1737056844132,3.80762,3334.8,3334.7,12.82281014]
[1737056844635,3.80762,3334.8,3334.7,12.22297014]
[1737056845326,3.80762,3334.8,3334.7,12.82281014]
[1737056845731,3.80762,3334.8,3334.7,5.28922367]
[1737056845939,3.2078,3334.8,3334.7,5.28922367]
[1737056846139,3.2078,3334.8,3334.7,6.25992367]
[1737056847231,6.74985725,3334.8,3334.7,8.60494295]
[1737056848443,6.74985725,3334.8,3334.7,13.78903916]
[1737056849940,6.74985725,3334.8,3334.7,14.98303916]
[1737056850343,6.74985725,3334.8,3334.7,12.81833916]
[1737056850638,7.34967725,3334.8,3334.7,14.01233916]
[1737056850834,6.74985725,3334.8,3334.7,14.01233916]
[1737056853639,3.2078,3334.8,3334.7,14.01233916]
[1737056854544,3.2078,3334.8,3334.7,6.97793621]
[1737056856145,4.14185725,3334.9,3334.8,0.59982]
[1737056856346,7.34965725,3334.9,3334.8,0.59982]
[1737056858143,7.34965725,3334.9,3334.8,12.82229136]
[1737056858939,6.74985725,3334.9,3334.8,12.82229136]
[1737056859346,7.34965725,3334.9,3334.8,6.86377535]
[1737056860250,7.34965725,3334.9,3334.8,8.05777535]
[1737056860852,7.34965725,3334.9,3334.8,15.0961505]
[1737056861549,6.74985725,3334.9,3334.8,15.0961505]
[1737056862245,6.74985725,3334.9,3334.8,8.05777535]
[1737056863445,7.34965725,3334.9,3334.8,8.05777535]
[1737056864853,6.74985725,3334.9,3334.8,8.05777535]
[1737056865850,6.74985725,3334.9,3334.8,8.51937535]
[1737056869764,7.34965725,3334.9,3334.8,6.97791621]
[1737056870358,6.74985725,3334.9,3334.8,6.97791621]
[1737056870551,6.74985725,3334.9,3334.8,14.01629136]
[1737056870757,7.34965725,3334.9,3334.8,14.01629136]
[1737056872063,7.34965725,3334.9,3334.8,6.97791621]
[1737056872467,8.42951639,3334.9,3334.8,6.97791621]
[1737056873168,7.82971639,3334.9,3334.8,6.97791621]
[1737056873669,7.82971639,3334.9,3334.8,14.01629136]
[1737056874069,8.42951639,3334.9,3334.8,14.01629136]
[1737056874766,4.88745914,3334.9,3334.8,14.01629136]
[1737056875068,4.28765914,3334.9,3334.8,14.01629136]
[1737056878579,3.2078,3334.9,3334.8,14.01629136]
[1737056882079,3.2078,3334.9,3334.8,15.0961505]
[1737056882277,4.71776576,3335.0,3334.8,20.57618964]
[1737056882473,2.46686576,3335.0,3334.9,1.063]
[1737056882678,2.46686576,3335.0,3334.9,41.863]
[1737056883172,1.79177187,3335.0,3334.9,42.53669989]
[1737056883576,2.36116613,3335.1,3334.9,67.60956278]
[1737056883777,2.36116613,3335.1,3335.0,1.27348989]
[1737056884185,2.36116613,3335.1,3335.0,2.65558437]
[1737056884583,2.36116613,3335.1,3335.0,2.65539407]
[1737056884987,3.54174919,3335.1,3335.0,14.87762001]
[1737056885782,3.80755,3335.2,3335.1,0.59977]
[1737056885981,3.80755,3335.2,3335.1,1.5953391]
[1737056886183,3.80755,3335.2,3335.1,2.67519824]
[1737056886488,3.80755,3335.2,3335.1,3.13510457]
[1737056886983,4.88740914,3335.2,3335.1,2.05524543]
[1737056887386,7.34862058,3335.2,3335.1,7.8257345]
[1737056887583,7.34862058,3335.2,3335.1,8.4255045]
[1737056887782,7.34862058,3335.2,3335.1,6.28561039]
[1737056888591,7.34862058,3335.2,3335.1,7.47961039]
[1737056889691,7.34862058,3335.2,3335.1,5.88462993]
[1737056890185,3.80755,3335.2,3335.1,1.194]
[1737056890588,3.2078,3335.2,3335.1,3.86315666]
[1737056890888,3.80755,3335.2,3335.1,4.4815962]
[1737056891290,3.2078,3335.2,3335.1,45.2815962]
[1737056891591,3.80755,3335.2,3335.1,49.97222613]
[1737056891787,3.80755,3335.2,3335.1,50.43626483]
[1737056891990,3.80755,3335.2,3335.1,48.75663569]
[1737056892282,3.2078,3335.2,3335.1,50.43626483]
[1737056892486,3.2078,3335.2,3335.1,50.92526483]
[1737056892793,6.74851948,3335.2,3335.1,50.92526483]
[1737056892991,6.74851948,3335.2,3335.1,49.84540569]
[1737056893187,6.74851948,3335.2,3335.1,49.13149483]
[1737056893389,6.74851948,3335.2,3335.1,47.56263569]
[1737056893594,7.34826948,3335.2,3335.1,48.75663569]
[1737056894289,3.80755,3335.2,3335.1,56.4226705]
[1737056894486,3.80755,3335.2,3335.1,15.6226705]
[1737056894687,3.80755,3335.2,3335.1,15.62282439]
[1737056894885,3.80755,3335.2,3335.1,14.42882439]
[1737056895287,7.34826948,3335.2,3335.1,2.37354187]
[1737056895591,7.34826948,3335.2,3335.1,2.11007543]
[1737056896195,7.34826948,3335.2,3335.1,2.11134631]
[1737056896393,3.80755,3335.2,3335.1,2.11134631]
[1737056896996,3.80755,3335.2,3335.1,3.30434631]
[1737056897996,3.80755,3335.2,3335.1,3.30466691]
[1737056900097,3.80755,3335.2,3335.1,3.30487855]
[1737056901799,3.80755,3335.2,3335.1,3.30525592]
[1737056903399,6.08856911,3335.2,3335.1,2.11225592]
[1737056903592,6.08856911,3335.2,3335.1,2.37569897]
[1737056904799,11.99035342,3335.2,3335.1,2.37569897]
[1737056905597,11.99035342,3335.2,3335.1,2.37681142]
[1737056906109,9.70933431,3335.2,3335.1,2.37681142]
[1737056907198,3.80755,3335.2,3335.1,2.37681142]
[1737056907402,3.80755,3335.2,3335.1,2.37686411]
[1737056908305,9.70933431,3335.2,3335.1,2.37686411]
[1737056909411,9.70933431,3335.2,3335.1,2.11327084]
[1737056909908,9.70933431,3335.2,3335.1,2.48576256]
[1737056910107,9.70933431,3335.2,3335.1,2.11327084]
[1737056910401,9.70933431,3335.2,3335.1,2.71304084]
[1737056910594,9.70933431,3335.2,3335.1,43.51304084]
[1737056910799,9.70933431,3335.2,3335.1,42.91327084]
[1737056911099,9.70933431,3335.2,3335.1,41.95120999]
[1737056911301,3.80755,3335.2,3335.1,47.97448423]
[1737056911498,3.80755,3335.2,3335.1,49.16748423]
[1737056912106,3.80755,3335.2,3335.1,44.47873303]
[1737056912503,3.80755,3335.2,3335.1,3.67873303]
[1737056914908,3.80755,3335.2,3335.1,3.67943525]
[1737056915605,12.65065489,3336.4,3335.1,8.67943525]
[1737056915802,9.44285489,3336.4,3336.3,0.59955]
[1737056916001,3.15584495,3336.4,3336.3,5.19304745]
[1737056916207,8.43471843,3336.5,3336.4,0.59953]
[1737056916498,8.43471843,3336.5,3336.4,43.51332666]
[1737056916499,1.47212769,3336.5,3336.4,43.51332666]
[1737056916705,11.60199063,3336.8,3336.7,0.59948]
[1737056916901,9.04189063,3336.8,3336.7,7.73805707]
[1737056917106,4.93143139,3336.8,3336.7,8.10917028]
[1737056917307,1.3992,3337.6,3336.7,47.93857707]
[1737056917507,1.99852,3337.6,3337.5,3.2078]
[1737056917716,1.99852,3337.6,3337.5,4.85755796]
[1737056917913,2.09706,3338.5,3337.5,4.85755796]
[1737056918108,0.9527,3338.6,3338.1,3.2078]
[1737056918109,0.59921,3338.2,3338.1,3.2078]
[1737056918301,0.5992,3338.3,3338.1,4.85755796]
[1737056918615,3.77852911,3339.4,3338.2,1.64975796]
[1737056918807,0.59903,3339.2,3339.1,3.2078]
[1737056919114,0.59903,3339.2,3339.1,7.13248871]
[1737056919319,0.9527,3339.3,3339.1,6.53720404]
[1737056919606,0.9527,3339.3,3339.2,1.04716192]
[1737056919808,1.49706,3340.4,3339.2,3.92175892]
[1737056920007,0.59887,3340.1,3340.0,3.2078]
[1737056920212,0.59887,3340.1,3340.0,3.47213819]
[1737056920510,0.59887,3340.1,3340.0,3.2078]
[1737056920907,0.59898,3339.5,3339.4,3.2078]
[1737056921106,2.28101911,3340.0,3339.4,3.83508394]
[1737056921410,2.87990911,3340.0,3339.9,3.2078]
[1737056923011,0.59889,3340.0,3339.9,3.2078]
[1737056923705,0.59888,3340.1,3339.9,3.2078]
[1737056924009,0.4825,3340.3,3340.1,0.59886]
[1737056924309,0.468,3340.8,3340.0,2.28101911]
[1737056924508,0.9253,3340.8,3340.2,0.59884]
[1737056924709,0.9253,3340.8,3340.0,2.28101911]
[1737056924710,0.59879,3340.6,3340.5,3.2078]
[1737056924910,0.9253,3340.8,3340.5,3.2078]
[1737056925115,0.4573,3340.8,3340.5,3.2078]
[1737056925408,0.4573,3340.8,3340.6,2.87979911]
[1737056925808,3.2078,3341.8,3340.6,2.28101911]
[1737056926009,12.588,3344.6,3341.6,5.48881911]
[1737056926010,3.2078,3342.2,3341.6,5.48881911]
[1737056926203,0.59853,3342.0,3341.6,5.48881911]
[1737056926404,0.59852,3342.1,3341.6,6.08739911]
[1737056926604,0.59851,3342.1,3342.0,3.2078]
[1737056926800,0.5986,3341.6,3341.5,4.4618]
[1737056927206,0.5986,3341.6,3341.5,3.2078]
[1737056928412,0.4919,3341.8,3341.5,3.2078]
[1737056928912,0.5986,3341.6,3341.5,3.2078]
[1737056929112,2.87961911,3341.6,3341.5,3.2078]
[1737056929304,0.5986,3341.6,3341.5,3.2078]
[1737056929803,0.59869,3341.1,3341.0,3.2078]
[1737056933418,0.59876,3340.7,3340.6,3.2078]
[1737056934720,0.9655,3341.7,3340.6,3.2078]
[1737056934915,1.49655,3341.5,3340.6,3.80658]
[1737056935617,0.59875,3340.8,3340.6,3.80658]
[1737056936517,0.59876,3340.7,3340.6,3.2078]
[1737056936821,0.00240124,3341.1,3340.6,3.2078]
[1737056937021,0.59875,3340.8,3340.6,3.80658]
[1737056937212,0.59876,3340.7,3340.6,3.2078]
[1737056937920,0.59883,3340.3,3340.2,3.2078]
[1737056939419,0.59883,3340.3,3340.2,3.82890382]
[1737056940923,0.59883,3340.3,3340.2,4.82332776]
[1737056941815,0.59883,3340.3,3340.2,3.870289]
[1737056942016,0.59883,3340.3,3340.2,3.2078]
[1737056942320,0.59883,3340.3,3340.2,3.87127015]
[1737056942519,0.59883,3340.3,3340.2,4.82575361]
[1737056942714,0.4968,3340.6,3340.2,3.2078]
[1737056942922,4.70444,3341.4,3340.2,3.2078]
[1737056943119,0.59874,3340.8,3340.7,3.2078]
[1737056944014,0.59874,3340.8,3340.7,3.4638861]
[1737056944221,0.59874,3340.8,3340.7,4.46206379]
[1737056944624,0.59874,3340.8,3340.7,4.42006273]
[1737056945219,0.59874,3340.8,3340.7,4.16397663]
[1737056945419,0.59871,3341.0,3340.7,4.16397663]
[1737056945625,0.59869,3341.2,3341.0,0.59871]
[1737056945925,0.59865,3341.4,3341.0,0.59871]
[1737056946125,0.59867,3341.2,3341.0,0.59871]
[1737056946332,0.59867,3341.2,3341.0,42.06747769]
[1737056946928,0.59867,3341.3,3341.0,42.06747769]
[1737056947227,4.70426,3341.8,3341.0,41.39871]
[1737056947624,0.59867,3341.3,3341.0,41.39871]
[1737056948331,4.70426,3341.8,3341.0,43.03589681]
[1737056948522,0.9215,3342.1,3341.0,47.43718681]
[1737056948719,0.59855,3341.9,3341.8,0.96742239]
[1737056948927,0.59855,3341.9,3341.8,2.22581912]
[1737056949121,0.59855,3341.9,3341.8,2.22582912]
[1737056949330,0.59855,3341.9,3341.8,1.62726912]
[1737056950525,0.59855,3341.9,3341.8,1.62730002]
[1737056952131,3.80635,3341.9,3341.8,0.87680002]
[1737056952325,3.80635,3341.9,3341.5,3.2078]
[1737056952326,0.59869,3341.1,3341.0,3.2078]
[1737056952525,1.49661,3341.4,3341.0,3.2078]
[1737056952828,0.59869,3341.1,3341.0,3.8065]
[1737056953830,0.59867,3341.3,3341.2,0.59867]
[1737056954032,3.8473439,3342.1,3341.0,3.2078]
[1737056954235,0.59862,3341.5,3341.4,3.2078]
[1737056954628,0.59869,3341.1,3341.0,3.2078]
[1737056954834,0.59874,3340.8,3340.7,4.6568127]
[1737056955338,0.59876,3340.7,3340.6,3.80657]
[1737056955732,0.59876,3340.7,3340.6,3.2078]
[1737056958837,1.9588,3341.0,3340.6,3.2078]
[1737056959338,0.59876,3340.7,3340.6,3.2078]
[1737056959539,0.59876,3340.7,3340.6,7.80990102]
[1737056960035,0.59876,3340.7,3340.6,4.60210102]
[1737056960838,0.5988,3340.5,3340.4,6.98521905]
[1737056961037,3.5246439,3340.5,3340.4,6.98521905]
[1737056961240,6.7324439,3340.5,3340.4,6.98521905]
[1737056961734,3.8066,3340.5,3340.4,6.98521905]
[1737056962038,3.8066,3340.5,3340.4,6.56227417]
[1737056962236,0.5988,3340.5,3340.4,6.56227417]
[1737056963638,0.5988,3340.5,3340.4,19.73659225]
[1737056964240,0.5988,3340.5,3340.4,20.08081195]
[1737056964833,0.5988,3340.5,3340.4,20.67963195]
[1737056965038,0.5988,3340.5,3340.4,20.08081195]
[1737056965340,0.5988,3340.5,3340.4,20.67963195]
[1737056965539,3.2078,3341.0,3340.4,20.08081195]
[1737056965838,0.59878,3340.7,3340.6,3.80657]
[1737056966043,0.59878,3340.7,3340.6,4.1507897]
[1737056966741,0.01956,3341.4,3340.6,23.28861195]
[1737056966938,0.59874,3340.8,3340.7,0.9429697]
[1737056967543,0.59874,3340.9,3340.8,0.59873]
[1737056967736,1.49657,3341.5,3340.8,0.34404268]
[1737056967939,1.49664,3341.3,3340.9,0.82594268]
[1737056968237,0.59871,3341.0,3340.9,0.4819]
[1737056968543,0.59871,3341.0,3340.9,0.82596323]
[1737056969649,0.59871,3341.0,3340.9,31.94301708]
[1737056971848,0.59871,3341.0,3340.9,20.31202836]
[1737056972742,0.59871,3341.0,3340.9,16.632963]
[1737056972943,0.59871,3341.0,3340.9,16.151063]
[1737056973644,0.59871,3341.0,3340.9,6.83941827]
[1737056975549,0.59871,3341.0,3340.9,5.0043658]
[1737056976341,0.59871,3341.0,3340.9,0.34406323]
[1737056982646,0.59871,3341.0,3340.9,0.34532782]
[1737056985753,0.59871,3341.0,3340.9,5.00563039]
[1737056986544,0.59871,3341.0,3340.9,5.00618583]
[1737056986951,0.59871,3341.0,3340.9,5.60493031]
[1737056987655,0.59871,3341.0,3340.9,7.38492637]
[1737056987856,0.59871,3341.0,3340.9,6.78619637]
[1737056988565,0.59871,3341.0,3340.9,6.78604592]
[1737056989064,0.59871,3341.0,3340.9,7.38477592]
[1737056989660,0.59871,3341.0,3340.9,6.78604592]
[1737056990063,0.59871,3341.0,3340.9,7.38477592]
[1737056990261,0.59871,3341.0,3340.9,7.2409346]
[1737056990761,0.59871,3341.0,3340.9,7.8396646]
[1737056991161,0.59871,3341.0,3340.9,7.2409346]
[1737056991756,0.59871,3341.0,3340.9,7.8396646]
[1737056991957,0.59871,3341.1,3341.0,0.59869]
[1737056992157,0.59871,3341.1,3341.0,4.64022597]
[1737056993570,0.59871,3341.1,3341.0,4.04153597]
[1737056993766,0.59871,3341.1,3341.0,4.64024597]
[1737056994566,0.59871,3341.1,3341.0,9.30532451]
[1737056995570,0.59871,3341.1,3341.0,11.08090588]
[1737056996069,0.59871,3341.1,3341.0,11.08122768]
[1737056996366,0.59871,3341.1,3341.0,17.4689152]
[1737056997969,0.59871,3341.1,3341.0,10.48251768]
[1737056999266,0.59871,3341.1,3341.0,6.78671768]
[1737056999869,0.59871,3341.1,3341.0,6.78689203]
[1737057000369,0.59871,3341.1,3341.0,0.34623212]